Cogmind - Beta 16.1 @@@ ROGUE MODE // 2026.04.16 @ 18:10:16 Player: f3-rnm Result: Self-destructed Performance ------------- Evolutions (4) 2000 Regions Visited (12) 2400 Robots Destroyed (113) 565 Value Destroyed (4243) 4243 Prototype IDs (30) 600 Alien Tech Used (0) 0 Bonus (1850) 1850 TOTAL SCORE: 11658 Bonus ------- High Alert Combat Kills 882 Follower Combat Kills 482 Entered Garrisons 200 Aligned with FarCom 300 Friendly Fire -14 Cogmind --------- Core Integrity 820/850 Matter 70/300 Energy 20/100 System Corruption 0% Temperature Cool (0) Movement Hovering (230) Ox3 Location -6/Factory Parts ------- > --- POWER (1) -------- (None) > --- PROPULSION (6) --- Aerolev Unit > --- UTILITY (6) ------ Experimental Heat Sink Large Storage Unit Advanced Weight Redist. System Improved Signal Interpreter Experimental Targeting Computer > --- WEAPON (2) ------- 8R-AWN's Boregun Power Maul > --- INVENTORY (15) --- Nuclear Core Large Matter Pod (17) Large Matter Pod (0) Machine Analyzer Experimental Sensor Array IFF Parser Weapon Cycler Reaction Control System Relay Coupler [Swarmer] (21) Advanced Assault Cannon Improved Grenade Launcher Long-range Missile Launcher Precision Rocket Launcher Remote Datajack CPS Tube (2) Peak State ------------ > --- POWER ------------ (None) > --- PROPULSION ------- Aerolev Unit Aerolev Unit > --- UTILITY ---------- Experimental Heat Sink Large Storage Unit Advanced Weight Redist. System Experimental Sensor Array Improved Signal Interpreter Experimental Targeting Computer > --- WEAPON ----------- 8R-AWN's Boregun Power Maul > --- INVENTORY -------- Nuclear Core Large Matter Pod Large Matter Pod Machine Analyzer IFF Parser Weapon Cycler Reaction Control System Relay Coupler [Swarmer] Advanced Assault Cannon Improved Grenade Launcher Long-range Missile Launcher Precision Rocket Launcher Remote Datajack CPS Tube [Rating: 55] Favorites ----------- Power Ion Engine Engine Ion Engine Power Core Reinforced Fission Core Propulsion Aerolev Unit Treads Light Treads Leg Titanium Leg Wheel Armored Huge Wheel Hover Unit Aerolev Unit Utility High-capacity Storage Unit Device Improved Heat Sink Storage High-capacity Storage Unit Processor Improved Signal Interpreter Protection Medium Reactive Plating Weapon Beam Cannon Energy Gun Spread Laser Energy Cannon Beam Cannon Ballistic Gun Light Assault Rifle Ballistic Cannon Assault Cannon Launcher Precision Rocket Launcher Impact Weapon Power Maul Build | -11 -10 -10 -9 -9 -9 -8 -8 -8 -8 -8 -8 -6 ------- Run | Yrd Mat Min Mat Min Exi Min Mat Sto Gar Rec Scr Fac Slots Evolved 8 | . . . 2 . . . 2 . . . . 4 Power . | . . . . . . . . . . . . . Propulsion 4 | . . . 1 . . . 1 . . . . 2 Utility 4 | . . . 1 . . . 1 . . . . 2 Weapon . | . . . . . . . . . . . . . Parts Attached 78 | 6 5 5 12 5 10 1 5 10 17 . . 2 Power 10 | 1 1 1 1 1 2 . 1 . 2 . . . Engine 6 | 1 1 . 1 1 2 . . . . . . . Core 4 | . . 1 . . . . 1 . 2 . . . Reactor . | . . . . . . . . . . . . . Propulsion 23 | 2 . 1 6 . 4 . 2 2 6 . . . Treads 5 | 2 . 1 1 . . . . . 1 . . . Leg 9 | . . . 4 . 4 . 1 . . . . . Wheel 2 | . . . . . . . 1 1 . . . . Hover 7 | . . . 1 . . . . 1 5 . . . Flight . | . . . . . . . . . . . . . Utility 23 | 1 3 1 3 2 2 . 1 3 5 . . 2 Device 9 | . . 1 . 1 1 . . 3 1 . . 2 Storage 3 | 1 2 . . . . . . . . . . . Processor 4 | . 1 . . 1 . . 1 . 1 . . . Hackware . | . . . . . . . . . . . . . Protection 7 | . . . 3 . 1 . . . 3 . . . Artifact . | . . . . . . . . . . . . . Weapon 22 | 2 1 2 2 2 2 1 1 5 4 . . . Energy Gun 3 | . . . . 1 . . . . 2 . . . Energy Cannon 2 | . . 2 . . . . . . . . . . Ballistic Gun 10 | 2 . . 1 1 2 1 . 2 1 . . . Ballistic Cannon 3 | . . . . . . . . 2 1 . . . Launcher 2 | . 1 . . . . . . 1 . . . . Special Weapon . | . . . . . . . . . . . . . Impact Weapon 2 | . . . 1 . . . 1 . . . . . Slashing Weapon . | . . . . . . . . . . . . . Piercing Weapon . | . . . . . . . . . . . . . Special Melee Weapon . | . . . . . . . . . . . . . Unidentified Prototypes 7 | . . . . . . . . 5 2 . . . Parts Lost 31 | . 1 2 5 4 6 . . 1 11 . . 1 Power 8 | . 1 1 1 1 2 . . . 2 . . . Propulsion 13 | . . 1 2 . 4 . . . 5 . . 1 Utility 4 | . . . 1 1 . . . . 2 . . . Weapon 6 | . . . 1 2 . . . 1 2 . . . Highest Loss Streak 4 | . 1 1 2 3 3 . . 1 4 . . 1 To Critical Strikes 4 | . . . . . 4 . . . . . . . Average Backups 15 | 1 9 13 18 19 18 20 19 19 14 14 14 14 Power . | . . . . 1 . 1 1 1 . 1 . . Propulsion 3 | . 2 2 7 7 6 6 5 5 2 . . . Utility 6 | . 2 4 5 5 5 7 7 9 7 8 8 7 Weapon 4 | . 3 5 4 5 5 6 5 4 2 3 4 4 Tool/Special . | . . . . . . . . . . . . . Unused Backups 22 | . . . 3 1 . . . 6 2 . . 10 Power . | . . . . . . . . . . . . . Propulsion 7 | . . . 2 1 . . . 3 1 . . . Utility 10 | . . . 1 . . . . 2 1 . . 6 Weapon 3 | . . . . . . . . 1 . . . 2 Tool/Special 2 | . . . . . . . . . . . . 2 Average Slot Usage (%) 85 | . 96 99 95 99 93 100 87 80 77 56 67 58 Engine 3 | . 13 8 . 11 8 11 2 . . . . . Core 5 | . . 5 10 . . . 6 9 6 . 6 1 Treads 6 | . 28 27 9 . . . . . . . . . Leg 7 | . . . 21 33 31 33 20 . . . . . Wheel 3 | . . . . . . . 7 17 4 . . . Hover 7 | . . . . . . . . . 20 18 18 13 Device 5 | . . 5 11 15 5 . . 8 3 . . 14 Storage 10 | . 14 14 11 11 11 11 9 9 7 9 9 6 Processor 12 | . 10 8 . 2 11 11 14 18 17 18 18 13 Protection 4 | . . . 9 3 3 11 9 . 4 9 9 1 Energy Cannon 4 | . . 18 18 3 . . . . . . . . Ballistic Gun 7 | . 23 8 2 13 20 22 12 3 1 . . . Ballistic Cannon 2 | . . . . . . . . 13 5 1 . . Launcher 1 | . 4 . . . . . . . 2 1 . . Impact Weapon 1 | . . . . . . . 5 . 1 . 6 5 Peak Build Rating 55 | 6 8 13 23 26 31 25 42 51 48 37 39 55 Average Rating 28 | 4 7 10 18 22 25 25 38 47 40 28 33 43 On Entrance 24 | . 6 8 13 21 26 25 25 42 47 37 28 35 Avg Prop Armor Cover (%) 8 | . . . 5 . . . 10 11 9 . . . Naked Turns . | . . . . . . . . . . . . . Heaviest Build 81 | 11 49 52 55 54 59 53 71 72 81 40 50 50 Greatest Support 56 | 40 40 40 51 51 54 37 47 56 56 16 16 25 Greatest Overweight (x) 3 | . 1 1 1 1 1 1 2 2 3 2 3 3 Average Overweight (x) . | . . 1 . . . 1 1 1 . 2 2 1 Largest Inventory Capacity 20 | 8 20 20 20 20 20 20 20 20 20 15 15 15 Average Capacity 17 | 7 17 20 20 20 20 20 20 20 15 15 15 15 Most Carried 20 | 2 13 14 20 20 20 20 20 20 20 15 15 15 Average Carried 15 | 1 9 13 18 19 18 20 19 19 14 14 14 14 Final Capacity 20 | 8 20 20 20 20 20 20 20 20 15 15 15 15 Final Carried 20 | 2 12 14 20 20 20 20 20 20 13 15 15 15 Class Distribution -------------------- 85% | Mutant 8% | Scavenger-Mutant 6% | Commander-Mutant Dominant Class ---------------- Mutant | -10/Materials Mutant | -10/Mines Mutant | -9/Materials Mutant | -9/Mines Mutant | -9/Exiles Scavenger-Mutant | -8/Mines Mutant | -8/Materials Mutant | -8/Storage Mutant | -8/Garrison Mutant | -8/Recycling Mutant | -8/Scraptown Mutant | -6/Factory Resources | -11 -10 -10 -9 -9 -9 -8 -8 -8 -8 -8 -8 -6 ----------- Run | Yrd Mat Min Mat Min Exi Min Mat Sto Gar Rec Scr Fac Matter Collected 3925 | 219 281 362 204 104 334 46 12 376 1800 150 33 4 Remotely . | . . . . . . . . . . . . . Salvage Created 3369 | . 329 459 516 172 119 . 56 561 1130 . . 27 Parts 224 | . 36 21 30 18 5 . 4 37 69 . . 4 Haulers Intercepted 9 | . 2 . 1 . . . 1 5 . . . . Recyclers Shooed . | . . . . . . . . . . . . . Parts Field Recycled . | . . . . . . . . . . . . . Retrieved Matter . | . . . . . . . . . . . . . Parts Self-Destructed . | . . . . . . . . . . . . . Prevented . | . . . . . . . . . . . . . Parts Restored . | . . . . . . . . . . . . . Kills | -11 -10 -10 -9 -9 -9 -8 -8 -8 -8 -8 -8 -6 ------- Run | Yrd Mat Min Mat Min Exi Min Mat Sto Gar Rec Scr Fac Combat Hostiles Destroyed 91 | . 11 13 13 7 1 . . 5 37 . . 4 Guns 27 | . 8 2 2 6 1 . . 2 6 . . . Cannons 31 | . . 10 7 1 . . . 3 10 . . . AOE 33 | . 3 1 4 . . . . . 21 . . 4 Classes Destroyed 15 | . 4 3 3 . 1 . . 1 3 . . . Worker 4 | . . 1 . . . . 1 2 . . . . Builder 4 | . 4 . . . . . . . . . . . Hauler 9 | . 2 . 1 . . . 1 5 . . . . Mechanic 1 | . . . . . . . . 1 . . . . Operator 3 | . 1 . 1 . . . . 1 . . . . Watcher 1 | . . . 1 . . . . . . . . . Swarmer 38 | . 11 3 6 4 . . . . 10 . . 4 Cutter 3 | . . . . . . . . . 3 . . . Grunt 22 | . . 9 1 3 . . . 1 8 . . . Brawler 2 | . . . 1 . . . . . 1 . . . Sentry 20 | . . . 5 . . . . 4 11 . . . Programmer 3 | . . . . . . . . . 3 . . . Behemoth 1 | . . . . . . . . . 1 . . . Zionite 1 | . . . . . 1 . . . . . . . Assembled 1 | . . 1 . . . . . . . . . . Best Kill Streak 5 | . 4 4 4 4 1 . 2 3 5 . . 4 Combat Bots Only 5 | . 3 3 4 4 1 . . 2 5 . . 4 Max Kills in Single Turn 4 | . 2 1 4 1 1 . 1 1 4 . . 2 Gunslinging . | . . . . . . . . . . . . . Exploded 4 | . 2 1 4 . . . . . 4 . . 2 Melee . | . . . . . . . . . . . . . Uniques/NPCs Destroyed 1 | . . . . . 1 . . . . . . . 8R-AWN (-9/Exiles) Combat | -11 -10 -10 -9 -9 -9 -8 -8 -8 -8 -8 -8 -6 -------- Run | Yrd Mat Min Mat Min Exi Min Mat Sto Gar Rec Scr Fac Hostile Shots Fired 585 | . 73 52 81 42 85 . 3 28 213 . . 8 Missed 172 | . 22 7 21 9 26 . 1 8 76 . . 2 Hits 413 | . 51 45 60 33 59 . 2 20 137 . . 6 Melee 2 | . . 1 . . . . . . 1 . . . Projectile 411 | . 51 44 60 33 59 . 2 20 136 . . 6 AOE 2 | . . . . . . . . . 2 . . . Critical Strikes 41 | . . 1 1 1 29 . . . 9 . . . Actively Blocked 1 | . . . 1 . . . . . . . . . Damage Taken 6004 | . 438 556 710 317 1074 . 43 433 2343 . . 90 Core 1062 | . 135 98 74 33 175 . 16 60 441 . . 30 Absorbed by Shields . | . . . . . . . . . . . . . Redirected to Shielding 18 | . . . 18 . . . . . . . . . Ignored by Resistances 112 | . . . . . . . . . 112 . . . Core Remaining (%) 35 | 100 . 6 . . . 29 . . . . 6 . Volleys Fired 393 | . 40 32 42 20 51 . 1 42 163 . . 2 Largest 2 | . 2 2 2 2 2 . 2 2 2 . . 1 Hottest 120 | . 40 120 120 85 46 . 46 74 93 . . 43 Shots Fired 639 | . 74 63 83 39 102 . 2 81 193 . . 2 Gun 367 | . 68 26 19 31 102 . 2 45 74 . . . Cannon 221 | . . 36 63 8 . . . 34 80 . . . Launcher 51 | . 6 1 1 . . . . 2 39 . . 2 Special . | . . . . . . . . . . . . . Kinetic 466 | . 68 26 19 28 102 . 2 79 142 . . . Thermal 122 | . . 36 63 11 . . . . 12 . . . Explosive 51 | . 6 1 1 . . . . 2 39 . . 2 Electromagnetic . | . . . . . . . . . . . . . Robot Hit Streak 17 | . 8 17 9 5 10 . . 10 14 . . 5 Robot Miss Streak 7 | . 3 4 3 7 6 . . 5 4 . . . Penetration Max . | . . . . . . . . . . . . . Secondary Targets 5 | . 2 . . 3 . . . . . . . . Max Gunslinging Chain 1 | . 1 . . 1 . . . . . . . . Shots Hit Robots 362 | . 37 42 46 23 65 . 3 45 99 . . 2 Core Hits 193 | . 24 22 23 15 14 . 2 25 64 . . 4 Critical Kills 5 | . . . . . . . 1 . 4 . . . Critical Parts Destroyed 8 | . . . . . . . . . 8 . . . Critical Strikes 20 | . . . . . . . 1 . 19 . . . Destroy 15 | . . . . . . . . . 15 . . . Blast 3 | . . . . . . . . . 3 . . . Smash 2 | . . . . . . . 1 . 1 . . . Melee Attacks 38 | . . . 18 . . . 4 1 10 . . 5 Impact 38 | . . . 18 . . . 4 1 10 . . 5 Slashing . | . . . . . . . . . . . . . Piercing . | . . . . . . . . . . . . . Sneak Attacks 4 | . . . . . . . 3 1 . . . . Combat Hostiles . | . . . . . . . . . . . . . Follow-up Attacks . | . . . . . . . . . . . . . Damage Inflicted 9726 | . 703 694 949 277 984 . 219 1076 4323 . . 501 Guns 3163 | . 485 128 117 185 984 . . 544 720 . . . Cannons 2689 | . . 490 644 89 . . . 322 1144 . . . Explosions 3108 | . 218 76 188 . . . . 86 2039 . . 501 Melee 763 | . . . . . . . 219 124 420 . . . Ramming 3 | . . . . 3 . . . . . . . . Kinetic 4530 | . 485 128 117 155 984 . . 866 1795 . . . Thermal 1322 | . . 490 644 119 . . . . 69 . . . Explosive 3108 | . 218 76 188 . . . . 86 2039 . . 501 Electromagnetic . | . . . . . . . . . . . . . Impact 763 | . . . . . . . 219 124 420 . . . Slashing . | . . . . . . . . . . . . . Piercing . | . . . . . . . . . . . . . Highest Corruption 7 | . . . . . . . . . 7 7 . . Average Corruption 3 | . . . . . . . . . 3 7 . . Corruption Purged . | . . . . . . . . . . . . . Corruption Blocked . | . . . . . . . . . . . . . Effects 33 | . . . . . . . . . 31 2 . . Message Errors 11 | . . . . . . . . . 10 1 . . Matter Fused 4 | . . . . . . . . . 4 . . . Heat Flow Errors 7 | . . . . . . . . . 6 1 . . Energy Discharges 5 | . . . . . . . . . 5 . . . Data Loss (minor) 5 | . . . . . . . . . 5 . . . Data Loss (major) 1 | . . . . . . . . . 1 . . . Overload Shots . | . . . . . . . . . . . . . Overflow Damage 377 | . 16 . . . . . . 94 226 . . 41 Projectiles 44 | . . . . . . . . . 44 . . . Explosions 188 | . 16 . . . . . . . 131 . . 41 Melee 145 | . . . . . . . . 94 51 . . . Knockbacks 9 | . . . . . . . . 3 6 . . . Impact 1 | . . . . . . . . . 1 . . . Kinetic 7 | . . . . . . . . 2 5 . . . Secondary 1 | . . . . . . . . 1 . . . . Self-Inflicted Damage 264 | . 43 23 40 . . . . 70 88 . . . Shots 8 | . 2 1 1 . . . . 1 3 . . . Rammed . | . . . . . . . . . . . . . Targets Rammed 3 | . . . . 3 . . . . . . . . Kicked 3 | . . . . 3 . . . . . . . . Crushed . | . . . . . . . . . . . . . Highest Temperature 298 | . . 199 228 25 . . 3 87 298 231 . . Average Temperature 72 | . . 74 70 13 . . 2 25 81 163 . . Received Heat Transfer 1074 | . . 243 150 69 . . 9 144 459 . . . Effects 2 | . . . 1 . . . . . 1 . . . Energy Bleed 2 | . . . 1 . . . . . 1 . . . Siege Activations . | . . . . . . . . . . . . . Martial Activations . | . . . . . . . . . . . . . Shielding Activations . | . . . . . . . . . . . . . Robots Disrupted . | . . . . . . . . . . . . . Combat Hostiles . | . . . . . . . . . . . . . Robots Corrupted . | . . . . . . . . . . . . . Combat Hostiles . | . . . . . . . . . . . . . Parts Fried 1 | . . . . . . . . 1 . . . . Impact Corruptions 2 | . . . . . . . . 1 1 . . . Robots Melted . | . . . . . . . . . . . . . Combat Hostiles . | . . . . . . . . . . . . . Parts Melted 5 | . . . 5 . . . . . . . . . Heat Transferred 2773 | . . 1036 1369 220 . . . . 148 . . . Parts Sabotaged . | . . . . . . . . . . . . . Parts Stolen . | . . . . . . . . . . . . . Parts Stripped . | . . . . . . . . . . . . . Power Chain Reactions . | . . . . . . . . . . . . . Alert | -11 -10 -10 -9 -9 -9 -8 -8 -8 -8 -8 -8 -6 ------- Run | Yrd Mat Min Mat Min Exi Min Mat Sto Gar Rec Scr Fac Maximum Alert Level 5 | . . . . . . . . 2 5 4 . . Low Security (%) 69 | 100 100 100 100 100 . 100 100 88 . . . 100 Level 1 2 | . . . . . . . . 10 1 . . . Level 2 12 | . . . . . . . . . 42 . . . Level 3 1 | . . . . . . . . . 5 . . . Level 4 7 | . . . . . . . . . 24 100 . . Level 5 7 | . . . . . . . . . 25 . . . High Security . | . . . . . . . . . . . . . Max Security . | . . . . . . . . . . . . . Peak Influence 2798 | . 148 85 108 80 . . 17 468 2798 1258 . 121 Initial 1258 | . . 23 4 37 . . . 1 304 1258 . . Average 360 | . 56 25 24 21 . . 6 46 1170 1246 . 18 Influence Increases 5010 | . 387 297 406 251 . . 42 809 2684 . . 134 Destroy 0b10 Robot/C 2140 | . 220 240 260 180 . . . 320 840 . . 80 Destroy 0b10 Robot/NC 125 | . 35 5 15 . . . 10 50 10 . . . Destroy Leader 332 | . 44 40 74 30 . . 2 102 30 . . 10 Allied During Kill 249 | . . . . 11 . . . 199 39 . . . Successful Hack 19 | . . . . . . . . 11 . . . 8 Disable Machine 105 | . . . . . . . 15 60 15 . . 15 Anti-Garrison Action 1050 | . . . . . . . . . 1050 . . . Destroy Structure 645 | . 43 12 12 . . . . 52 505 . . 21 Partial Spotted 30 | . . . . . . . . . 30 . . . Lose Combat Pursuer 315 | . 45 . 45 30 . . 15 15 165 . . . Influence Decreases 4918 | . 327 345 322 347 . . 37 346 354 1570 1228 42 Entered New Map 3040 | . . 37 8 59 . . . 4 164 1540 1228 . Time Decay 1497 | . 317 298 283 248 . . 37 252 . 30 . 32 Lost Part 221 | . 10 10 31 40 . . . 10 110 . . 10 Lost Ally 160 | . . . . . . . . 80 80 . . . Squads Dispatched 8 | . 1 . 1 1 . . . 4 . . . 1 Investigation 4 | . . . . 1 . . . 2 . . . 1 Extermination . | . . . . . . . . . . . . . Reinforcement 3 | . 1 . 1 . . . . 1 . . . . Assault . | . . . . . . . . . . . . . Garrison 1 | . . . . . . . . 1 . . . . Intercept . | . . . . . . . . . . . . . Searches Triggered . | . . . . . . . . . . . . . Construction Impeded . | . . . . . . . . . . . . . Haulers Reinforced . | . . . . . . . . . . . . . Active Scanning Responses . | . . . . . . . . . . . . . Cargo Convoy Interrupts . | . . . . . . . . . . . . . Stealth | -11 -10 -10 -9 -9 -9 -8 -8 -8 -8 -8 -8 -6 --------- Run | Yrd Mat Min Mat Min Exi Min Mat Sto Gar Rec Scr Fac Distress Signals 7 | . 1 2 2 . . . 1 . . . . 1 Communications Jammed . | . . . . . . . . . . . . . Distress Signals . | . . . . . . . . . . . . . Times Spotted 161 | . 22 13 26 10 1 . 9 20 52 . . 8 Peak Tracking Total 12 | . 4 3 5 4 2 . 7 6 12 . . 5 Tactical Retreats 17 | . 3 1 2 1 . . 1 1 8 . . . Traps | -11 -10 -10 -9 -9 -9 -8 -8 -8 -8 -8 -8 -6 ------- Run | Yrd Mat Min Mat Min Exi Min Mat Sto Gar Rec Scr Fac Traps Triggered 10 | . . . . . . . 1 2 6 . . 1 Indirectly . | . . . . . . . . . . . . . Trap Hack Attempts . | . . . . . . . . . . . . . Triggered . | . . . . . . . . . . . . . Disarmed . | . . . . . . . . . . . . . Reprogrammed . | . . . . . . . . . . . . . Reused . | . . . . . . . . . . . . . Traps Extracted . | . . . . . . . . . . . . . Installed . | . . . . . . . . . . . . . Triggered . | . . . . . . . . . . . . . Machines | -11 -10 -10 -9 -9 -9 -8 -8 -8 -8 -8 -8 -6 ---------- Run | Yrd Mat Min Mat Min Exi Min Mat Sto Gar Rec Scr Fac Machines Disabled 16 | . . . 1 . . . 1 4 9 . . 1 Max in Single Turn 2 | . . . 1 . . . 1 1 2 . . 1 Garrison Access 1 | . . . . . . . . . . . . 1 Garrison Relay 7 | . . . . . . . . . 7 . . . Machines Repaired . | . . . . . . . . . . . . . Machines Dismantled . | . . . . . . . . . . . . . Machines Sabotaged . | . . . . . . . . . . . . . Overloaded Fab Kills . | . . . . . . . . . . . . . Hacking | -11 -10 -10 -9 -9 -9 -8 -8 -8 -8 -8 -8 -6 --------- Run | Yrd Mat Min Mat Min Exi Min Mat Sto Gar Rec Scr Fac Machines Accessed 19 | . 1 . 2 1 2 . . 6 4 . . 3 Terminals 14 | . 1 . 2 . . . . 5 4 . . 2 Fabricators . | . . . . . . . . . . . . . Repair Stations . | . . . . . . . . . . . . . Recycling Units . | . . . . . . . . . . . . . Scanalyzers . | . . . . . . . . . . . . . Garrison Access 2 | . . . . . . . . 1 . . . 1 Total Hacks 33 | . 2 . 3 1 2 . . 12 10 . . 3 Successful 11 | . . . 1 1 2 . . 5 . . . 2 Failed 22 | . 2 . 2 . . . . 7 10 . . 1 Catastrophic 5 | . 1 . . . . . . 2 2 . . . Database Lockouts . | . . . . . . . . . . . . . Manual 7 | . . . 1 . 1 . . 3 1 . . 1 Terminals 27 | . 2 . 3 . . . . 10 10 . . 2 Fabricators . | . . . . . . . . . . . . . Repair Stations . | . . . . . . . . . . . . . Recycling Units . | . . . . . . . . . . . . . Scanalyzers . | . . . . . . . . . . . . . Garrison Access 3 | . . . . . . . . 2 . . . 1 Terminal Hacks 9 | . . . 1 1 2 . . 4 . . . 1 Record 1 | . . . . . 1 . . . . . . . Open Door 4 | . . . . 1 . . . 3 . . . . Branch Access Points 2 | . . . 1 . . . . . . . . 1 Hauler Manifests 1 | . . . . . . . . 1 . . . . Proto ID Catalog 1 | . . . . . 1 . . . . . . . Fabricator Hacks . | . . . . . . . . . . . . . Repair Station Hacks . | . . . . . . . . . . . . . Recycling Unit Hacks . | . . . . . . . . . . . . . Scanalyzer . | . . . . . . . . . . . . . Garrison Access Hacks 2 | . . . . . . . . 1 . . . 1 Unlock Access 1 | . . . . . . . . 1 . . . . Seal Access 1 | . . . . . . . . . . . . 1 Unauthorized Hacks . | . . . . . . . . . . . . . Terminals . | . . . . . . . . . . . . . Fabricators . | . . . . . . . . . . . . . Repair Stations . | . . . . . . . . . . . . . Recycling Units . | . . . . . . . . . . . . . Scanalyzers . | . . . . . . . . . . . . . Garrison Access . | . . . . . . . . . . . . . Data Cores Recovered 3 | . 1 . 1 . . . . 1 . . . . Used . | . . . . . . . . . . . . . Hacking Detections 11 | . 1 . 1 . . . . 5 4 . . . Full Trace Events 5 | . . . . . . . . 1 4 . . . Feedback Events . | . . . . . . . . . . . . . Feedback Blocked . | . . . . . . . . . . . . . Robot Schematics Acquired . | . . . . . . . . . . . . . Robots Built . | . . . . . . . . . . . . . Authchips . | . . . . . . . . . . . . . Time . | . . . . . . . . . . . . . Total Robot Build Rating . | . . . . . . . . . . . . . Part Schematics Acquired . | . . . . . . . . . . . . . Parts Built . | . . . . . . . . . . . . . Authchips . | . . . . . . . . . . . . . Time . | . . . . . . . . . . . . . Total Part Build Rating . | . . . . . . . . . . . . . Part Studies Acquired . | . . . . . . . . . . . . . Parts Repaired . | . . . . . . . . . . . . . Time . | . . . . . . . . . . . . . Parts Recycled . | . . . . . . . . . . . . . Recycled Matter . | . . . . . . . . . . . . . Retrieved Matter . | . . . . . . . . . . . . . Retrieved Components . | . . . . . . . . . . . . . Parts Scanalyzed . | . . . . . . . . . . . . . Part Schematics Acquired . | . . . . . . . . . . . . . Parts Damaged . | . . . . . . . . . . . . . Bothacking | -11 -10 -10 -9 -9 -9 -8 -8 -8 -8 -8 -8 -6 ------------ Run | Yrd Mat Min Mat Min Exi Min Mat Sto Gar Rec Scr Fac Used RIF Installer . | . . . . . . . . . . . . . Robots Hacked . | . . . . . . . . . . . . . Non-combat . | . . . . . . . . . . . . . Combat . | . . . . . . . . . . . . . Robot Hacks Applied . | . . . . . . . . . . . . . Relay Couplers Released 35 | . . . . . . . . . 35 . . . Machine Destruction 31 | . . . . . . . . . 31 . . . Programmers 4 | . . . . . . . . . 4 . . . Fabnet Peak Effective % . | . . . . . . . . . . . . . Robots Rewired . | . . . . . . . . . . . . . Allies Hacked . | . . . . . . . . . . . . . Hacks Repelled . | . . . . . . . . . . . . . Allies | -11 -10 -10 -9 -9 -9 -8 -8 -8 -8 -8 -8 -6 -------- Run | Yrd Mat Min Mat Min Exi Min Mat Sto Gar Rec Scr Fac Total Allies 13 | . . . . 3 . . . 10 . . . . Largest Group 10 | . . . . 3 3 . . 10 4 . . . Highest-Rated Group 173 | . . . . 40 40 . . 173 77 . . . Highest-Rated Ally 29 | . . . . 16 16 . . 29 29 . . . Initial Warlord ECA Mod 11 | . . . . . . . . . . 11 11 9 Total Orders . | . . . . . . . . . . . . . Ally Attacks 152 | . . . . 16 20 . . 84 32 . . . Total Damage 1614 | . . . . 88 74 . . 1051 401 . . . Kills 24 | . . . . 2 3 . . 14 5 . . . Allies Corrupted . | . . . . . . . . . . . . . Allies Melted . | . . . . . . . . . . . . . Intel | -11 -10 -10 -9 -9 -9 -8 -8 -8 -8 -8 -8 -6 ------- Run | Yrd Mat Min Mat Min Exi Min Mat Sto Gar Rec Scr Fac Active Infowar (turns) 1387 | . . . . . 1 . . 1238 15 . . 133 Sensors 1384 | . . . . . . . . 1238 15 . . 131 IFF 2 | . . . . . . . . . . . . 2 Cloaking 1 | . . . . . 1 . . . . . . . Robot Analysis Total . | . . . . . . . . . . . . . Derelict Logs Recovered 3 | . . 1 . 2 . . . . . . . . Drone Launches . | . . . . . . . . . . . . . Drone Recoveries . | . . . . . . . . . . . . . Exploration | -11 -10 -10 -9 -9 -9 -8 -8 -8 -8 -8 -8 -6 ------------- Run | Yrd Mat Min Mat Min Exi Min Mat Sto Gar Rec Scr Fac Turns Passed 10706 | 81 1044 1133 1168 829 700 203 126 1256 2411 64 1404 287 Spaces Moved 5878 | 48 436 376 443 476 304 105 76 593 2169 38 634 180 Core 5 | 5 . . . . . . . . . . . . Treads 1031 | 43 436 376 162 . . . . . 14 . . . Legs 1171 | . . . 281 476 304 105 5 . . . . . Wheels 1086 | . . . . . . . 71 593 422 . . . Hover 2585 | . . . . . . . . . 1733 38 634 180 Flight . | . . . . . . . . . . . . . Fastest Speed 38 | 50 160 240 130 130 130 193 115 115 38 166 166 46 Average Speed 144 | 148 208 240 213 156 166 193 132 115 86 166 201 121 Slowest Speed 400 | 160 240 240 240 200 200 193 192 130 400 166 226 226 Overloaded Moves . | . . . . . . . . . . . . . Propulsion Burnouts . | . . . . . . . . . . . . . Robots Hopped . | . . . . . . . . . . . . . Potential Cave-ins 10 | . . . 10 . . . . . . . . . Cave-ins Triggered . | . . . . . . . . . . . . . Exploration Rate (%) 49 | 4 69 85 56 92 61 33 9 80 94 9 45 7 Regions Visited 12 Branch Regions 7 Pre-discovered Areas 2 | . . . . 1 1 . . . . . . . Known Exits Taken 5 | . . . 1 . . . 1 1 . 1 1 . Unknown Exits Taken 6 | 1 1 1 . 1 1 1 . . . . . . Scrap Searched 4 | . . 1 . 1 . 1 . . . . 1 . Spaces Dug 57 | . . . 13 . . . . . 39 . . 5 Terrain Destroyed 645 | . 41 12 22 . . . . 46 505 . . 19 Melee 18 | . . . 13 . . . . . . . . 5 Projectile 19 | . . . . . . . . 10 9 . . . AOE 606 | . 41 12 9 . . . . 36 494 . . 14 Terrain Rammed . | . . . . . . . . . . . . . Walls Destroyed . | . . . . . . . . . . . . . Machines Disabled . | . . . . . . . . . . . . . Actions | -11 -10 -10 -9 -9 -9 -8 -8 -8 -8 -8 -8 -6 --------- Run | Yrd Mat Min Mat Min Exi Min Mat Sto Gar Rec Scr Fac Total 7404 | 55 504 549 548 523 395 106 93 1094 2496 41 765 235 Wait 776 | . 13 132 11 3 16 . . 390 50 . 123 38 Move 5865 | 47 435 375 442 475 303 104 75 592 2167 37 633 180 Hop . | . . . . . . . . . . . . . Pick Up 86 | 2 10 4 16 8 7 . 3 14 17 1 4 . Fast Attach 37 | 6 2 1 2 2 4 . 2 5 11 . . 2 Attach 46 | . 1 2 6 4 6 . 1 4 17 . 3 2 Detach 17 | . . . . 1 . . . 2 10 2 . 2 Swap 35 | . 2 2 6 1 3 1 2 8 7 . . 3 Drop 58 | . 1 1 5 6 5 1 5 20 10 1 2 1 Fire 393 | . 40 32 42 20 51 . 1 42 163 . . 2 Melee 38 | . . . 18 . . . 4 1 10 . . 5 Ram . | . . . . . . . . . . . . . Kick 3 | . . . . 3 . . . . . . . . Crush . | . . . . . . . . . . . . . Escape Stasis 50 | . . . . . . . . 16 34 . . . Rewire . | . . . . . . . . . . . . . Trap . | . . . . . . . . . . . . . Miscellaneous . | . . . . . . . . . . . . . Route ------- -11/Scrapyard -10/Materials (discovered 3 exits: *Mat x2 / [*Min]) -10/Mines (discovered 2 exits: *Mat x2) -9/Materials (discovered 3 exits: [*Mat x2] / *Min) -9/Mines (discovered 4 exits: [*Mat x2] / *Exi / [*Zio]) -9/Exiles -8/Mines -8/Materials -8/Storage (discovered 2 exits: *Fac / Gar) -8/Garrison (discovered 3 exits: *Rec x3) -8/Recycling -8/Scraptown -6/Factory (discovered 2 exits: Low x2) History --------- Turn | Location | Event 4 | -11/Scrapyard | Discovered new exit (range 16) 82 | -11/Scrapyard | Entered Materials 306 | -10/Materials | Build established: Mutant 620 | -10/Materials | Discovered new exit (range 15) 775 | -10/Materials | Discovered new exit (range 16) 791 | -10/Materials | Core integrity fell below 50% 1051 | -10/Materials | Discovered new exit (range 11) 1126 | -10/Materials | Entered Mines 1384 | -10/Mines | Found a damaged Exp. Sensor Array with a note attached 1388 | -10/Mines | Found Prototype Device 1749 | -10/Mines | Discovered new exit (range 3) 1795 | -10/Mines | Discovered new exit (range 7) 1820 | -10/Mines | Learned Materials emergency access door positions 1954 | -10/Mines | Excavation squad dispatched 1954 | -10/Mines | A large section of the Mines collapsed 1955 | -10/Mines | Core integrity fell below 20% 2259 | -10/Mines | Entered Materials 2259 | -9/Materials | Evolved 2 slots: Propulsion x1, Utility x1 2750 | -9/Materials | Build established: Scavenger-Mutant 2792 | -9/Materials | Discovered new exit (range 9) 3050 | -9/Materials | Build established: Mutant 3078 | -9/Materials | Discovered new exit (range 9) 3159 | -9/Materials | Identified exit to Mines 3427 | -9/Materials | Entered Mines 3428 | -9/Mines | A Derelict revealed a hidden shortcut to a safe place 3628 | -9/Mines | Learned location of Zion (-7) 3669 | -9/Mines | Discovered new exit (range 3) 3710 | -9/Mines | Lost 3 parts (1u2w) 3716 | -9/Mines | Learned Materials emergency access door positions 3772 | -9/Mines | Discovered new exit (range 9) 3868 | -9/Mines | Assisted by bots powering up and referring to "LRC-V3" 4017 | -9/Mines | Met a Derelict shopkeep closing up shop 4127 | -9/Mines | Found a Scrap Suit stashed away for nefarious purposes 4248 | -9/Mines | Deemed a non-threat by the Exiles lab entrance 4248 | -9/Mines | Discovered new exit (range 5) 4256 | -9/Mines | Entered Exiles 4256 | -9/Exiles | Accompanied by 3 allies 4292 | -9/Exiles | Met 8R-AWN 4310 | -9/Exiles | Met EX-HEX 4364 | -9/Exiles | Met EX-BIN 4405 | -9/Exiles | Aligned with FarCom system 4407 | -9/Exiles | Given EX-Vault access code 4455 | -9/Exiles | Opened EX-Vault 4466 | -9/Exiles | Found Cloak of Protection 4511 | -9/Exiles | Warned to stay clear of 0b10 Research branches 4538 | -9/Exiles | Exiles lab attacked by MAIN.C 4637 | -9/Exiles | Discovered new exit (range 12) 4665 | -9/Exiles | Attacked by the Exiles 4732 | -9/Exiles | Lost 3 allies 4786 | -9/Exiles | Core integrity fell below 50% 4807 | -9/Exiles | Lost 3 parts (2p1n) 4868 | -9/Exiles | Destroyed 8R-AWN 4879 | -9/Exiles | Found Prototype Ballistic Gun 4882 | -9/Exiles | Found Prototype Processor 4956 | -9/Exiles | Entered Mines 5140 | -8/Mines | Discovered new exit (range 6) 5159 | -8/Mines | Entered Materials 5159 | -8/Materials | Evolved 2 slots: Propulsion x1, Utility x1 5264 | -8/Materials | Discovered new exit (range 13) 5284 | -8/Materials | Identified exit to Storage 5285 | -8/Materials | Entered Storage 5301 | -8/Storage | Identified Exp. Sensor Array 6097 | -8/Storage | Assisted by bots powering up and referring to "LRC-V3" 6198 | -8/Storage | Discovered new exit (range 12) 6225 | -8/Storage | Identified exit to Factory 6413 | -8/Storage | Build established: Commander-Mutant 6523 | -8/Storage | Garrison activated, responded to threat 6538 | -8/Storage | Identified exit to Garrison 6541 | -8/Storage | Entered Garrison 6541 | -8/Garrison | Accompanied by 4 allies 6543 | -8/Garrison | Lost 5 allies 6575 | -8/Garrison | Garrison Relay disabled 6579 | -8/Garrison | Triggered checkpoint 6697 | -8/Garrison | Triggered checkpoint 6750 | -8/Garrison | Discovered new exit (range 12) 6781 | -8/Garrison | Lost 3 allies 6891 | -8/Garrison | Triggered checkpoint 6954 | -8/Garrison | Discovered new exit (range 14) 7065 | -8/Garrison | Build established: Mutant 7070 | -8/Garrison | Spotted B-75 Beast 7095 | -8/Garrison | Identified Exp. Targeting Computer 7096 | -8/Garrison | Destroyed B-75 Beast 7123 | -8/Garrison | Lost 3 parts (1n1u1w) 7238 | -8/Garrison | Spotted B-75 Beast 7247 | -8/Garrison | Identified 8R-AWN's Boregun 7547 | -8/Garrison | Identified exit to Recycling 7585 | -8/Garrison | Triggered checkpoint 7671 | -8/Garrison | Discovered exit to Recycling (range 16) 7697 | -8/Garrison | Attempted to access garrison exit controls, blocked by remote lockdown 7865 | -8/Garrison | Garrison Relay disabled 8238 | -8/Garrison | Core integrity fell below 50% 8295 | -8/Garrison | Lost 4 parts (1p3n) 8436 | -8/Garrison | Garrison Relay disabled 8675 | -8/Garrison | Triggered checkpoint 8684 | -8/Garrison | Garrison Relay disabled 8685 | -8/Garrison | Core integrity fell below 20% 8841 | -8/Garrison | Triggered checkpoint 8864 | -8/Garrison | Garrison Relay disabled 8952 | -8/Garrison | Entered Recycling 8977 | -8/Recycling | Scanned before Scraplab entrance 9000 | -8/Recycling | Entered Scraplab 9013 | -8/Recycling | Discovered new exit (range 2) 9013 | -8/Recycling | Identified exit to Scraptown 9016 | -8/Recycling | Entered Scraptown 9016 | -8/Scraptown | System corruption cleaned by C-Scrubber 9114 | -8/Scraptown | Visited Junk Repository 9143 | -8/Scraptown | Turned away by UFD registrar 9166 | -8/Scraptown | Visited Cave Peace 9192 | -8/Scraptown | Heard Great Nut preacher, LISTEN AND RECITE! 9209 | -8/Scraptown | Visited Symbiants 9246 | -8/Scraptown | Visited Shadow of the Wyrm 9262 | -8/Scraptown | Visited Cyclists 9285 | -8/Scraptown | Visited CPS Storage 10398 | -8/Scraptown | Discovered new exit (range 13) 10418 | -8/Scraptown | Identified exit to Factory 10420 | -8/Scraptown | Entered Factory 10420 | -6/Factory | Evolved 4 slots: Propulsion x2, Utility x2 10443 | -6/Factory | Identified exit to Lower Caves 10707 | -6/Factory | Self-destructed Last Messages --------------- 10540_ An alarm sounds. 10540_ ALERT: Alarm triggered, dispatching investigation squad. 10632_ Connecting with Garrison Access... >>Seal Access door sealed. 10660_ W-25 Informer sends out distress signal. 10661_ ALERT: All DSF locations entering lockdown mode. 10661_ Fabricator disabled. 10661_ S-27 Virus destroyed. 10661_ Destroyed VTOL Module. 10664_ S-27 Virus destroyed. 10664_ Destroyed Lgt. Deuterium Engine. 10668_ U-05 Engineer builds a Door. 10672_ U-05 Engineer lays Concrete. 10676_ Acquired 4 matter. 10676_ U-05 Engineer lays Concrete. 10684_ U-05 Engineer builds a Wall. 10684_ Connecting with Terminal... 10685_ U-05 Engineer lays Concrete. 10705_ Aerolev Unit destroyed. Map ----- +----------------------------------------------------+ | ?????????????????????????????????????????????????? | | ?????????????????????????????????????????????????? | | ?????????????????????????????????????????????????? | | ?????????????????????????????????????????????????? | | ?????????????????????????????????????????????????? | | ?????????????????????????????????????????????????? | | ?????????????????????????????????????????????????? | | ?????????????????????????????????????????????????? | | ?????????????????????????????????????????????????? | | ?????????????????????????????????????????????????? | | ????????????????????? ?????????????????????????? | | ????????????????????#ss ?????????????????????????? | | ????????????????????# ?????????????????????????? | | ????????????????????# ????"???????????????????? | | ????????????????????# ??? "???????????????????? | | ????????????????????# ??? ""??????????????????? | | ????????????????????# ??? """?????????????????? | | ????????????######### ?????????????????? | | ???????????? s """ """ ""??????????????? | | ???????????? """ """ """?????????????? | | ??????????? """ """ """ ""??????????? | | ??????????? """ """ """ """?????????? | | ?????????? ????????? | | ?????????? ????????????? | | ?????????? m #??????????????????? | | ?????????????????###### @ #######??????????????? | | ??????????????????????# ; #??????????????? | | ??????????????????????# # #??????????????? | | ??????????????????????# # """ #??????????????? | | ??????????????????????# # """ #??????????????? | | ??????????????????????# # """ #??????????????? | | ??????????????????????# # #??????????????? | | ??????????????????????# # #??????????????? | | ??????????????????????# # "" #??????????????? | | ??????????????????????# # "T ###############? | | ??????????????????????# # "" ## #? | | ??????????????????????# # "" ## #? | | ??????????????????????# # ## #? | | ?????????????????????## ###/ #? | | ????????????????? """" #? | | ????????????????? [ """" #? | | ????????????????? [ "" """" #? | | ?????????????????? "" """" ## | | ?????????????????? F """" "# | | ??????????????????? ########### """ """" # | | ?????????????????? ???????????## ### "" """" # | | ??????????????????????????????? ?# # | | ?????????????????????????????? ?#########+#### | | ????????????????????????????? ??????????????# | | ????????????????????????????? ??????????????# | +----------------------------------------------------+ Best States ------------- Heat Dissipation 63 Energy Generation 19 Energy Capacity 310 Matter Stores 300 Matter Capacity 300 Sight Range 16 Robot Scan Range 20 Terrain Scan Density 10 Additional Mass Support 9 Armor Coverage 225 Resistance: KI 30 Propulsion Shielding 33 Evasion (%) 65 Targeting Accuracy 12 Core Analysis 6 Recoil Reduction 2 Item Schematics ----------------- None Robot Schematics ------------------ None Fabricated ------------ Nothing Repaired ---------- Nothing Studied --------- None Alien Tech Used ----------------- None Achievements -------------- None Challenges ------------ None Game ------ Seed MappingMagneticClaws Manual? 0 Play Time 00:50:40 Cumulative 466.8 hours Start 2026.04.16 @ 17:18:18 End 2026.04.16 @ 18:10:16 Sessions 1 Manual Loads 0 Difficulty Rogue Special Mode None Game No. 408 Rogue 372 Adventurer 36 Explorer 0 Win Type - Total 18 Types 9/0/9/0/0/0/0/0/0/0 Lore% 73 Gallery% 83 Achievement% 67 Wizard Run 0 Options --------- Layout 0 ASCII 0 Keyboard 0 Movement Mouse Keybinds 0 Fullscreen 1 Font 18/SmallcapsGlow Map View 76x50 Zoom Use 0% Tactical HUD 1 Map Filters NONE Filters NONE Steam 1 RUN: 31d7c551-4d8f-4a7c-894e-765104e668c8